[Event "Late-Titled-Tuesday-Blitz-July-09-2024"]
[Site "Chess.com"]
[Date "2024.07.09"]
[Round "4"]
[White "Kombinator01"]
[Black "Mbneu"]
[Result "1-0"]
[WhiteElo "2454"]
[BlackElo "2258"]
[TimeControl "180+1"]
[EndTime "14:39:00 PDT"]
[Termination "Kombinator01 won by checkmate"]

1. e4 {[%clk 0:03:00.9]} 1... c5 {[%clk 0:02:46.8]} 2. Nf3 {[%clk 0:03:00.8]}
2... Nf6 {[%clk 0:02:47.1]} 3. e5 {[%clk 0:02:59]} 3... Nd5 {[%clk 0:02:46.8]}
4. b3 {[%clk 0:02:57.5]} 4... Nc6 {[%clk 0:02:41.8]} 5. Bb2 {[%clk 0:02:57.7]}
5... e6 {[%clk 0:02:41.7]} 6. Bb5 {[%clk 0:02:52.3]} 6... Be7 {[%clk 0:02:40]}
7. O-O {[%clk 0:02:51.9]} 7... O-O {[%clk 0:02:37]} 8. Nc3 {[%clk 0:02:51.2]}
8... a6 {[%clk 0:02:34.6]} 9. Bxc6 {[%clk 0:02:51]} 9... Nxc3 {[%clk 0:02:19.2]}
10. dxc3 {[%clk 0:02:49.1]} 10... dxc6 {[%clk 0:02:10.7]} 11. c4 {[%clk
0:02:49.3]} 11... Qc7 {[%clk 0:02:05.5]} 12. Qe2 {[%clk 0:02:49.1]} 12... f5
{[%clk 0:02:02.4]} 13. exf6 {[%clk 0:02:47.6]} 13... Bxf6 {[%clk 0:02:02.1]} 14.
Bxf6 {[%clk 0:02:45.5]} 14... gxf6 {[%clk 0:02:01.9]} 15. Qe3 {[%clk 0:02:45.8]}
15... b6 {[%clk 0:01:58.7]} 16. a4 {[%clk 0:02:45.3]} 16... a5 {[%clk
0:01:57.7]} 17. Rad1 {[%clk 0:02:44.4]} 17... e5 {[%clk 0:01:56.5]} 18. Rd2
{[%clk 0:02:43]} 18... Be6 {[%clk 0:01:55.3]} 19. Rfd1 {[%clk 0:02:43.3]} 19...
Rad8 {[%clk 0:01:55.4]} 20. Qe4 {[%clk 0:02:41.8]} 20... Rxd2 {[%clk 0:01:53.4]}
21. Rxd2 {[%clk 0:02:41.9]} 21... Rd8 {[%clk 0:01:52.7]} 22. Rxd8+ {[%clk
0:02:40.1]} 22... Qxd8 {[%clk 0:01:52.7]} 23. h3 {[%clk 0:02:40.5]} 23... Qd6
{[%clk 0:01:48.8]} 24. Nh4 {[%clk 0:02:30.1]} 24... Kg7 {[%clk 0:01:26.3]} 25.
Kh2 {[%clk 0:02:23.5]} 25... Qd4 {[%clk 0:01:20.6]} 26. Qxc6 {[%clk 0:02:19.5]}
26... Qf4+ {[%clk 0:01:17.2]} 27. Kg1 {[%clk 0:02:15.3]} 27... Qc1+ {[%clk
0:01:16.5]} 28. Kh2 {[%clk 0:02:15.2]} 28... Qf4+ {[%clk 0:01:17]} 29. g3 {[%clk
0:02:15.4]} 29... Qxf2+ {[%clk 0:01:16.4]} 30. Ng2 {[%clk 0:02:16]} 30... Bf5
{[%clk 0:01:11.6]} 31. g4 {[%clk 0:02:08.6]} 31... Bxc2 {[%clk 0:01:09.7]} 32.
h4 {[%clk 0:02:06.8]} 32... h5 {[%clk 0:01:04.7]} 33. g5 {[%clk 0:02:03.6]}
33... Kg6 {[%clk 0:01:00.6]} 34. Qe8+ {[%clk 0:02:00.1]} 34... Kf5 {[%clk
0:00:59.2]} 35. Qxh5 {[%clk 0:01:57.4]} 35... Be4 {[%clk 0:00:53.2]} 36. gxf6+
{[%clk 0:01:57.4]} 36... Kxf6 {[%clk 0:00:51.3]} 37. Qg5+ {[%clk 0:01:58]} 37...
Ke6 {[%clk 0:00:49.8]} 38. Qg4+ {[%clk 0:01:58.3]} 38... Bf5 {[%clk 0:00:50.1]}
39. Qg8+ {[%clk 0:01:58]} 39... Kf6 {[%clk 0:00:49.8]} 40. h5 {[%clk 0:01:49.6]}
40... e4 {[%clk 0:00:49.3]} 41. h6 {[%clk 0:01:48]} 41... e3 {[%clk 0:00:49]}
42. Qg7+ {[%clk 0:01:48.2]} 42... Ke6 {[%clk 0:00:48.4]} 43. h7 {[%clk
0:01:45.7]} 43... Bxh7 {[%clk 0:00:46.5]} 44. Qxh7 {[%clk 0:01:45.2]} 44... e2
{[%clk 0:00:46.7]} 45. Qe4+ {[%clk 0:01:45.9]} 45... Kd7 {[%clk 0:00:45.6]} 46.
Qb7+ {[%clk 0:01:45]} 46... Ke8 {[%clk 0:00:44.4]} 47. Qa8+ {[%clk 0:01:43.4]}
47... Kd7 {[%clk 0:00:44]} 48. Qb7+ {[%clk 0:01:43.2]} 48... Ke8 {[%clk
0:00:44.3]} 49. Qe4+ {[%clk 0:01:43.5]} 49... Kd7 {[%clk 0:00:43.9]} 50. Kh3
{[%clk 0:01:43.6]} 50... Qf1 {[%clk 0:00:38.9]} 51. Kg3 {[%clk 0:01:42.3]} 51...
Kd6 {[%clk 0:00:36.3]} 52. Qd5+ {[%clk 0:01:39.7]} 52... Kc7 {[%clk 0:00:36]}
53. Qd2 {[%clk 0:01:39.5]} 53... Kc8 {[%clk 0:00:34.8]} 54. Qe1 {[%clk
0:01:39.3]} 54... Kc7 {[%clk 0:00:34.3]} 55. Qf2 {[%clk 0:01:35.9]} 55... Kc8
{[%clk 0:00:33.5]} 56. Ne1 {[%clk 0:01:34.2]} 56... Kc7 {[%clk 0:00:32]} 57. Kf3
{[%clk 0:01:34.2]} 57... Qh1+ {[%clk 0:00:26.9]} 58. Kxe2 {[%clk 0:01:34.1]}
58... Qe4+ {[%clk 0:00:27.2]} 59. Kd2 {[%clk 0:01:34.1]} 59... Qb1 {[%clk
0:00:26.3]} 60. Qf7+ {[%clk 0:01:31.9]} 60... Kc6 {[%clk 0:00:25.1]} 61. Qd5+
{[%clk 0:01:31.8]} 61... Kc7 {[%clk 0:00:25.5]} 62. Qd3 {[%clk 0:01:32.4]} 62...
Qb2+ {[%clk 0:00:24.9]} 63. Nc2 {[%clk 0:01:32.7]} 63... Qe5 {[%clk 0:00:23.9]}
64. Ne3 {[%clk 0:01:32.2]} 64... Qb2+ {[%clk 0:00:23.3]} 65. Nc2 {[%clk
0:01:32.2]} 65... Qe5 {[%clk 0:00:22.8]} 66. Qe3 {[%clk 0:01:32.5]} 66... Qd6+
{[%clk 0:00:19.7]} 67. Kc1 {[%clk 0:01:31.1]} 67... Qf6 {[%clk 0:00:18.4]} 68.
Qg3+ {[%clk 0:01:29.3]} 68... Kb7 {[%clk 0:00:17.8]} 69. Qg2+ {[%clk 0:01:29.6]}
69... Ka7 {[%clk 0:00:17.6]} 70. Qd5 {[%clk 0:01:29.6]} 70... Qf1+ {[%clk
0:00:16.2]} 71. Kb2 {[%clk 0:01:29.5]} 71... Qf6+ {[%clk 0:00:16.3]} 72. Ka2
{[%clk 0:01:29.3]} 72... Qf2 {[%clk 0:00:16.3]} 73. Qe4 {[%clk 0:01:28.5]} 73...
Ka6 {[%clk 0:00:15.5]} 74. Qa8# {[%clk 0:01:27.8]} 1-0

[Event "Late-Titled-Tuesday-Blitz-July-09-2024"]
[Site "Chess.com"]
[Date "2024.07.09"]
[Round "4"]
[White "flaviorcb"]
[Black "brm72"]
[Result "1/2-1/2"]
[WhiteElo "2205"]
[BlackElo "2644"]
[TimeControl "180+1"]
[EndTime "14:39:01 PDT"]
[Termination "Game drawn by repetition"]

1. d4 {[%clk 0:03:00.9]} 1... Nf6 {[%clk 0:02:54.5]} 2. Nf3 {[%clk 0:03:00.7]}
2... e6 {[%clk 0:02:54]} 3. Bf4 {[%clk 0:02:59.6]} 3... b6 {[%clk 0:02:53.3]} 4.
e3 {[%clk 0:02:59.2]} 4... Bb7 {[%clk 0:02:53.9]} 5. Be2 {[%clk 0:02:58.5]} 5...
d6 {[%clk 0:02:53.8]} 6. h3 {[%clk 0:02:58.4]} 6... Nbd7 {[%clk 0:02:54.3]} 7.
c3 {[%clk 0:02:56.2]} 7... g6 {[%clk 0:02:54.4]} 8. O-O {[%clk 0:02:55.1]} 8...
Bg7 {[%clk 0:02:55]} 9. a4 {[%clk 0:02:54.8]} 9... a6 {[%clk 0:02:54.4]} 10. Bh2
{[%clk 0:02:52.4]} 10... O-O {[%clk 0:02:54.4]} 11. Nbd2 {[%clk 0:02:50.1]}
11... Qe7 {[%clk 0:02:54.9]} 12. Re1 {[%clk 0:02:40.8]} 12... Ne4 {[%clk
0:02:52]} 13. Nxe4 {[%clk 0:02:40.2]} 13... Bxe4 {[%clk 0:02:52.9]} 14. Bd3
{[%clk 0:02:37.5]} 14... Bb7 {[%clk 0:02:50.5]} 15. e4 {[%clk 0:02:34.4]} 15...
e5 {[%clk 0:02:50.3]} 16. d5 {[%clk 0:02:34.5]} 16... f5 {[%clk 0:02:45.2]} 17.
c4 {[%clk 0:02:26.8]} 17... a5 {[%clk 0:02:43.7]} 18. Nd2 {[%clk 0:02:24.1]}
18... Nc5 {[%clk 0:02:40.9]} 19. Bc2 {[%clk 0:02:18.8]} 19... f4 {[%clk
0:02:40.1]} 20. f3 {[%clk 0:02:16.6]} 20... Bc8 {[%clk 0:02:38]} 21. Kh1 {[%clk
0:02:14.8]} 21... Bd7 {[%clk 0:02:33.4]} 22. Qe2 {[%clk 0:02:09.3]} 22... g5
{[%clk 0:02:33.7]} 23. Reb1 {[%clk 0:01:51.5]} 23... h5 {[%clk 0:02:32.4]} 24.
b4 {[%clk 0:01:50.9]} 24... axb4 {[%clk 0:02:32.2]} 25. Rxb4 {[%clk 0:01:51]}
25... Ra5 {[%clk 0:02:13]} 26. Nb3 {[%clk 0:01:47.6]} 26... Nxb3 {[%clk
0:02:12.9]} 27. Bxb3 {[%clk 0:01:43.8]} 27... g4 {[%clk 0:02:10.1]} 28. hxg4
{[%clk 0:01:39.6]} 28... hxg4 {[%clk 0:02:11]} 29. fxg4 {[%clk 0:01:38.1]} 29...
Qh4 {[%clk 0:02:10.4]} 30. Bd1 {[%clk 0:01:35.3]} 30... Kf7 {[%clk 0:02:08.2]}
31. Ra3 {[%clk 0:01:29.2]} 31... Rg8 {[%clk 0:01:48.2]} 32. Rh3 {[%clk
0:01:28.3]} 32... Qg5 {[%clk 0:01:48.1]} 33. Rh5 {[%clk 0:01:27.8]} 33... Qg6
{[%clk 0:01:47.6]} 34. g3 {[%clk 0:01:11.3]} 34... f3 {[%clk 0:01:21.8]} 35.
Qxf3+ {[%clk 0:01:09.1]} 35... Ke8 {[%clk 0:01:22.4]} 36. Rf5 {[%clk 0:00:59.4]}
36... Bxf5 {[%clk 0:01:20.8]} 37. gxf5 {[%clk 0:00:58.1]} 37... Qf6 {[%clk
0:01:16]} 38. Qh5+ {[%clk 0:00:54.5]} 38... Kd8 {[%clk 0:01:14.5]} 39. g4 {[%clk
0:00:53.2]} 39... Rh8 {[%clk 0:01:13.7]} 40. g5 {[%clk 0:00:45.1]} 40... Rxh5
{[%clk 0:00:34.3]} 41. gxf6 {[%clk 0:00:45.3]} 41... Rxh2+ {[%clk 0:00:34.9]}
42. Kxh2 {[%clk 0:00:44.7]} 42... Bxf6 {[%clk 0:00:35.8]} 43. Rb2 {[%clk
0:00:41.9]} 43... Rc5 {[%clk 0:00:32.2]} 44. Bb3 {[%clk 0:00:37.3]} 44... Ke7
{[%clk 0:00:29.2]} 45. Rg2 {[%clk 0:00:37.3]} 45... Kf7 {[%clk 0:00:27.4]} 46.
Kg3 {[%clk 0:00:36]} 46... Ra5 {[%clk 0:00:27.2]} 47. Kf3 {[%clk 0:00:35.8]}
47... Ra8 {[%clk 0:00:27.7]} 48. Rh2 {[%clk 0:00:33.5]} 48... Kg7 {[%clk
0:00:17.5]} 49. Rg2+ {[%clk 0:00:30.4]} 49... Kf7 {[%clk 0:00:17.8]} 50. Rh2
{[%clk 0:00:30.6]} 50... Kg7 {[%clk 0:00:18.1]} 51. Rg2+ {[%clk 0:00:30.8]}
51... Kf7 {[%clk 0:00:18.5]} 1/2-1/2

[Event "Late-Titled-Tuesday-Blitz-July-09-2024"]
[Site "Chess.com"]
[Date "2024.07.09"]
[Round "4"]
[White "artin10862"]
[Black "bazar-wokzal"]
[Result "0-1"]
[WhiteElo "2935"]
[BlackElo "2636"]
[TimeControl "180+1"]
[EndTime "14:39:03 PDT"]
[Termination "bazar-wokzal won on time"]

1. e4 {[%clk 0:02:58]} 1... Nc6 {[%clk 0:02:59.4]} 2. Bc4 {[%clk 0:02:53]} 2...
Nf6 {[%clk 0:02:58.9]} 3. d3 {[%clk 0:02:39.5]} 3... e5 {[%clk 0:02:58.3]} 4.
Nf3 {[%clk 0:02:38.1]} 4... Bc5 {[%clk 0:02:57.8]} 5. c3 {[%clk 0:02:34.2]} 5...
d6 {[%clk 0:02:57.1]} 6. Bg5 {[%clk 0:02:30.4]} 6... h6 {[%clk 0:02:56.1]} 7.
Bh4 {[%clk 0:02:30.2]} 7... Bg4 {[%clk 0:02:51.2]} 8. Nbd2 {[%clk 0:02:27.7]}
8... Qd7 {[%clk 0:02:34.1]} 9. b4 {[%clk 0:02:23.4]} 9... Bb6 {[%clk 0:02:33.8]}
10. a4 {[%clk 0:02:24.3]} 10... a5 {[%clk 0:02:33.6]} 11. b5 {[%clk 0:02:15.3]}
11... Ne7 {[%clk 0:02:33.2]} 12. Bxf6 {[%clk 0:02:11.4]} 12... gxf6 {[%clk
0:02:32.8]} 13. Qb3 {[%clk 0:02:09.5]} 13... Ng6 {[%clk 0:02:23.6]} 14. d4
{[%clk 0:02:07.9]} 14... Nf4 {[%clk 0:02:12.2]} 15. g3 {[%clk 0:02:03.7]} 15...
Ne6 {[%clk 0:02:04.3]} 16. Qb2 {[%clk 0:01:36.2]} 16... O-O-O {[%clk 0:01:55.3]}
17. O-O {[%clk 0:01:30.2]} 17... Rdg8 {[%clk 0:01:46.5]} 18. Kh1 {[%clk
0:01:25.5]} 18... h5 {[%clk 0:01:43.4]} 19. h4 {[%clk 0:01:23.1]} 19... exd4
{[%clk 0:01:20.3]} 20. Nxd4 {[%clk 0:01:13.9]} 20... Nxd4 {[%clk 0:01:17.9]} 21.
cxd4 {[%clk 0:01:13.9]} 21... f5 {[%clk 0:01:18.4]} 22. Bd5 {[%clk 0:00:59.2]}
22... fxe4 {[%clk 0:01:14.5]} 23. Bxe4 {[%clk 0:00:56.3]} 23... d5 {[%clk
0:01:05.8]} 24. Bg2 {[%clk 0:00:51.6]} 24... Bh3 {[%clk 0:01:05.3]} 25. Nf3
{[%clk 0:00:46.6]} 25... Bxg2+ {[%clk 0:01:03.2]} 26. Kxg2 {[%clk 0:00:46.3]}
26... Qg4 {[%clk 0:00:55.5]} 27. Rad1 {[%clk 0:00:29.2]} 27... f5 {[%clk
0:00:54.5]} 28. Ne5 {[%clk 0:00:28.1]} 28... Qxh4 {[%clk 0:00:50.8]} 29. Rh1
{[%clk 0:00:26.7]} 29... Qf6 {[%clk 0:00:47.5]} 30. Kf3 {[%clk 0:00:18.8]} 30...
h4 {[%clk 0:00:45.1]} 31. Qd2 {[%clk 0:00:10.3]} 31... hxg3 {[%clk 0:00:43]} 32.
fxg3 {[%clk 0:00:10.7]} 32... Qg7 {[%clk 0:00:36.8]} 33. Rxh8 {[%clk 0:00:10]}
33... Qxg3+ {[%clk 0:00:35.4]} 34. Ke2 {[%clk 0:00:09.6]} 34... Rxh8 {[%clk
0:00:35]} 35. Qe3 {[%clk 0:00:05.8]} 35... Rh2+ {[%clk 0:00:29.9]} 36. Kd3
{[%clk 0:00:06.3]} 36... f4 {[%clk 0:00:25.9]} 37. Qf3 {[%clk 0:00:04.9]} 37...
Ra2 {[%clk 0:00:23.8]} 0-1

[Event "Late-Titled-Tuesday-Blitz-July-09-2024"]
[Site "Chess.com"]
[Date "2024.07.09"]
[Round "4"]
[White "ChessSwole"]
[Black "bob1263"]
[Result "1-0"]
[WhiteElo "2695"]
[BlackElo "2519"]
[TimeControl "180+1"]
[EndTime "14:39:05 PDT"]
[Termination "ChessSwole won on time"]

1. d4 {[%clk 0:03:00.9]} 1... d5 {[%clk 0:02:58.2]} 2. Bf4 {[%clk 0:03:00.1]}
2... Nf6 {[%clk 0:02:55.6]} 3. e3 {[%clk 0:03:00.2]} 3... e6 {[%clk 0:02:54.7]}
4. Nf3 {[%clk 0:02:59.9]} 4... Bd6 {[%clk 0:02:54]} 5. Ne5 {[%clk 0:02:58.1]}
5... O-O {[%clk 0:02:36.7]} 6. Nd2 {[%clk 0:02:57.3]} 6... c5 {[%clk 0:02:35.5]}
7. c3 {[%clk 0:02:56.3]} 7... Nc6 {[%clk 0:02:34.4]} 8. Bb5 {[%clk 0:02:24.8]}
8... Qc7 {[%clk 0:02:31.1]} 9. Bxc6 {[%clk 0:02:09.6]} 9... bxc6 {[%clk
0:02:30]} 10. O-O {[%clk 0:02:02.1]} 10... a5 {[%clk 0:02:13.4]} 11. Qa4 {[%clk
0:01:40.9]} 11... Ba6 {[%clk 0:02:08.4]} 12. Rfe1 {[%clk 0:01:38.3]} 12... Bb5
{[%clk 0:02:07.1]} 13. Qd1 {[%clk 0:01:30.8]} 13... a4 {[%clk 0:01:59.7]} 14. h3
{[%clk 0:01:20.7]} 14... cxd4 {[%clk 0:01:53.6]} 15. cxd4 {[%clk 0:01:16.2]}
15... c5 {[%clk 0:01:53]} 16. Rc1 {[%clk 0:01:12.4]} 16... c4 {[%clk 0:01:52.3]}
17. Nb1 {[%clk 0:00:53.4]} 17... Ne4 {[%clk 0:01:32.3]} 18. f3 {[%clk
0:00:46.1]} 18... Nf6 {[%clk 0:01:31.3]} 19. Nc3 {[%clk 0:00:43.4]} 19... Rfb8
{[%clk 0:01:28.3]} 20. b3 {[%clk 0:00:41]} 20... axb3 {[%clk 0:01:09.9]} 21.
axb3 {[%clk 0:00:41.2]} 21... Nh5 {[%clk 0:00:54.6]} 22. Nxb5 {[%clk 0:00:39.7]}
22... Rxb5 {[%clk 0:00:52.6]} 23. bxc4 {[%clk 0:00:40.3]} 23... dxc4 {[%clk
0:00:49.2]} 24. Rxc4 {[%clk 0:00:41.2]} 24... Qb7 {[%clk 0:00:41.7]} 25. Bh2
{[%clk 0:00:36.8]} 25... f6 {[%clk 0:00:37.7]} 26. Nd3 {[%clk 0:00:31.7]} 26...
Bxh2+ {[%clk 0:00:34]} 27. Kxh2 {[%clk 0:00:32.6]} 27... Qb8+ {[%clk 0:00:32]}
28. f4 {[%clk 0:00:33]} 28... Rb3 {[%clk 0:00:16.9]} 29. Nc5 {[%clk 0:00:29.6]}
29... Rxe3 {[%clk 0:00:15.7]} 30. Rf1 {[%clk 0:00:13.6]} 30... Nxf4 {[%clk
0:00:14.2]} 31. Kh1 {[%clk 0:00:11.3]} 31... Nxh3 {[%clk 0:00:08.8]} 32. Qd2
{[%clk 0:00:09.8]} 32... Rea3 {[%clk 0:00:05.8]} 33. Nxe6 {[%clk 0:00:06.4]} 1-0

[Event "Late-Titled-Tuesday-Blitz-July-09-2024"]
[Site "Chess.com"]
[Date "2024.07.09"]
[Round "4"]
[White "Meri-Arabidze"]
[Black "VacheH009"]
[Result "1-0"]
[WhiteElo "2690"]
[BlackElo "2514"]
[TimeControl "180+1"]
[EndTime "14:39:05 PDT"]
[Termination "Meri-Arabidze won by checkmate"]

1. d4 {[%clk 0:02:57]} 1... Nf6 {[%clk 0:02:59.1]} 2. c4 {[%clk 0:02:57.6]} 2...
e6 {[%clk 0:02:59.6]} 3. Nc3 {[%clk 0:02:58.3]} 3... Bb4 {[%clk 0:02:59.2]} 4.
f3 {[%clk 0:02:58.9]} 4... c5 {[%clk 0:02:57.1]} 5. d5 {[%clk 0:02:58.5]} 5...
b5 {[%clk 0:02:55.1]} 6. e4 {[%clk 0:02:58.6]} 6... d6 {[%clk 0:02:47.6]} 7. Ne2
{[%clk 0:02:56.3]} 7... bxc4 {[%clk 0:02:47.7]} 8. Nf4 {[%clk 0:02:56.5]} 8...
e5 {[%clk 0:02:38]} 9. Ne2 {[%clk 0:02:56.5]} 9... O-O {[%clk 0:02:37.2]} 10.
Ng3 {[%clk 0:02:56.6]} 10... h6 {[%clk 0:02:37.6]} 11. Bxc4 {[%clk 0:02:56.1]}
11... Ba6 {[%clk 0:02:37.1]} 12. Bxa6 {[%clk 0:02:53.9]} 12... Nxa6 {[%clk
0:02:38]} 13. O-O {[%clk 0:02:54.2]} 13... Nc7 {[%clk 0:02:37.7]} 14. Nf5 {[%clk
0:02:51.3]} 14... Re8 {[%clk 0:02:32.2]} 15. Be3 {[%clk 0:02:33.5]} 15... Kh7
{[%clk 0:02:09.4]} 16. Qd2 {[%clk 0:02:27]} 16... Ng8 {[%clk 0:02:09]} 17. g4
{[%clk 0:02:13.1]} 17... Nb5 {[%clk 0:02:04.3]} 18. a3 {[%clk 0:02:04.5]} 18...
Ba5 {[%clk 0:01:43.4]} 19. b4 {[%clk 0:02:04.3]} 19... Nxc3 {[%clk 0:01:42.4]}
20. Qxc3 {[%clk 0:01:52.1]} 20... cxb4 {[%clk 0:01:38.9]} 21. axb4 {[%clk
0:01:53]} 21... Bb6 {[%clk 0:01:39.5]} 22. Rfc1 {[%clk 0:01:35.5]} 22... g6
{[%clk 0:01:27.7]} 23. Ng3 {[%clk 0:01:30.2]} 23... Qb8 {[%clk 0:01:26.2]} 24.
Nf1 {[%clk 0:01:19.9]} 24... Ne7 {[%clk 0:01:21.3]} 25. Kh1 {[%clk 0:01:13.2]}
25... Qb7 {[%clk 0:01:17.2]} 26. Bxb6 {[%clk 0:01:03.5]} 26... Qb8 {[%clk
0:01:14.4]} 27. Be3 {[%clk 0:00:58.7]} 27... Qb7 {[%clk 0:01:14.4]} 28. Qb2
{[%clk 0:00:49.9]} 28... h5 {[%clk 0:01:12.3]} 29. gxh5 {[%clk 0:00:47.3]} 29...
gxh5 {[%clk 0:01:12.5]} 30. Qg2 {[%clk 0:00:40.7]} 30... Rg8 {[%clk 0:01:11.9]}
31. Qh3 {[%clk 0:00:39.4]} 31... Rg6 {[%clk 0:01:12.4]} 32. Ng3 {[%clk
0:00:34.2]} 32... Qb5 {[%clk 0:01:09.5]} 33. Nxh5 {[%clk 0:00:32.3]} 33... Rh8
{[%clk 0:00:57.9]} 34. Rg1 {[%clk 0:00:27.3]} 34... Kg8 {[%clk 0:00:43.7]} 35.
Rxa7 {[%clk 0:00:26.5]} 35... Rxh5 {[%clk 0:00:21.8]} 36. Qxh5 {[%clk
0:00:24.4]} 36... Qe2 {[%clk 0:00:15.7]} 37. Rxe7 {[%clk 0:00:20.5]} 37... Qxe3
{[%clk 0:00:06.8]} 38. Rxg6+ {[%clk 0:00:19.2]} 38... Kf8 {[%clk 0:00:06.9]} 39.
Rxf7+ {[%clk 0:00:19.3]} 39... Ke8 {[%clk 0:00:06.8]} 40. Qh8+ {[%clk
0:00:18.7]} 40... Kxf7 {[%clk 0:00:07.7]} 41. Qh7+ {[%clk 0:00:19]} 41... Kf8
{[%clk 0:00:07.7]} 42. Rg8# {[%clk 0:00:19.9]} 1-0

[Event "Late-Titled-Tuesday-Blitz-July-09-2024"]
[Site "Chess.com"]
[Date "2024.07.09"]
[Round "4"]
[White "rasmussvane"]
[Black "secretworker2027"]
[Result "1/2-1/2"]
[WhiteElo "2918"]
[BlackElo "2708"]
[TimeControl "180+1"]
[EndTime "14:39:06 PDT"]
[Termination "Game drawn by repetition"]

1. Nf3 {[%clk 0:02:59.6]} 1... Nf6 {[%clk 0:02:59.7]} 2. g3 {[%clk 0:02:59.6]}
2... d5 {[%clk 0:02:59.8]} 3. Bg2 {[%clk 0:02:58.3]} 3... e6 {[%clk 0:02:58.6]}
4. O-O {[%clk 0:02:58.3]} 4... Be7 {[%clk 0:02:58.8]} 5. c4 {[%clk 0:02:57.9]}
5... O-O {[%clk 0:02:57.2]} 6. b3 {[%clk 0:02:58.3]} 6... d4 {[%clk 0:02:51.7]}
7. e3 {[%clk 0:02:57.1]} 7... c5 {[%clk 0:02:50.1]} 8. Ne5 {[%clk 0:02:56.8]}
8... Nfd7 {[%clk 0:02:45]} 9. exd4 {[%clk 0:02:54.3]} 9... cxd4 {[%clk
0:02:40.2]} 10. Nxd7 {[%clk 0:02:52.9]} 10... Nxd7 {[%clk 0:02:38.5]} 11. Ba3
{[%clk 0:02:51.7]} 11... Nc5 {[%clk 0:02:33.5]} 12. d3 {[%clk 0:02:47.8]} 12...
Rb8 {[%clk 0:02:32.4]} 13. b4 {[%clk 0:02:43.1]} 13... Nd7 {[%clk 0:02:29.6]}
14. b5 {[%clk 0:02:37.8]} 14... Nc5 {[%clk 0:02:28.7]} 15. Qe2 {[%clk
0:02:31.2]} 15... b6 {[%clk 0:02:28.1]} 16. Nd2 {[%clk 0:02:29.6]} 16... Bb7
{[%clk 0:02:22.4]} 17. Bxc5 {[%clk 0:02:27.5]} 17... Bxc5 {[%clk 0:02:20.5]} 18.
f4 {[%clk 0:02:25.1]} 18... Bb4 {[%clk 0:02:00.9]} 19. Ne4 {[%clk 0:02:06.6]}
19... Bxe4 {[%clk 0:01:57]} 20. Bxe4 {[%clk 0:02:06.5]} 20... Bc3 {[%clk
0:01:52.1]} 21. Rad1 {[%clk 0:02:04.2]} 21... g6 {[%clk 0:01:52.2]} 22. Kh1
{[%clk 0:02:02.3]} 22... Rc8 {[%clk 0:01:48.9]} 23. g4 {[%clk 0:01:54.6]} 23...
Rc5 {[%clk 0:01:48.8]} 24. f5 {[%clk 0:01:53.6]} 24... exf5 {[%clk 0:01:48.6]}
25. gxf5 {[%clk 0:01:54.5]} 25... Qh4 {[%clk 0:01:43.7]} 26. Rf3 {[%clk
0:01:37.3]} 26... Re5 {[%clk 0:01:41]} 27. Rdf1 {[%clk 0:01:30.5]} 27... Bb4
{[%clk 0:01:36.4]} 28. Rf4 {[%clk 0:01:25.2]} 28... Qh6 {[%clk 0:01:34.8]} 29.
Qg2 {[%clk 0:01:24.4]} 29... Bd6 {[%clk 0:01:32.1]} 30. fxg6 {[%clk 0:01:22.3]}
30... hxg6 {[%clk 0:01:32.2]} 31. Rg4 {[%clk 0:00:55.6]} 31... Kh8 {[%clk
0:01:26.6]} 32. Rf3 {[%clk 0:00:52]} 32... Rh5 {[%clk 0:01:24.9]} 33. h3 {[%clk
0:00:51.6]} 33... Rh4 {[%clk 0:01:10.8]} 34. Rxh4 {[%clk 0:00:44]} 34... Qxh4
{[%clk 0:01:10.7]} 35. Rf1 {[%clk 0:00:39]} 35... f5 {[%clk 0:01:04.9]} 36. Bd5
{[%clk 0:00:36.1]} 36... Re8 {[%clk 0:01:03.9]} 37. Bf7 {[%clk 0:00:26.8]} 37...
Rf8 {[%clk 0:00:36.7]} 38. Bxg6 {[%clk 0:00:16.8]} 38... Rg8 {[%clk 0:00:36.8]}
39. Rxf5 {[%clk 0:00:17.1]} 39... Rxg6 {[%clk 0:00:34.2]} 40. Qxg6 {[%clk
0:00:14.2]} 40... Qxh3+ {[%clk 0:00:34.4]} 41. Kg1 {[%clk 0:00:14.5]} 41... Bh2+
{[%clk 0:00:34.5]} 42. Kf2 {[%clk 0:00:14.2]} 42... Bg3+ {[%clk 0:00:33.9]} 43.
Kf3 {[%clk 0:00:12.5]} 43... Qh1+ {[%clk 0:00:28.6]} 44. Kg4 {[%clk 0:00:07.3]}
44... Qh4+ {[%clk 0:00:27.9]} 45. Kf3 {[%clk 0:00:07.2]} 45... Qh1+ {[%clk
0:00:28.6]} 46. Ke2 {[%clk 0:00:03]} 46... Qe1+ {[%clk 0:00:28.4]} 47. Kf3
{[%clk 0:00:03.3]} 47... Qh1+ {[%clk 0:00:28.4]} 1/2-1/2